fUST/lending_fUST_20260114
["ID","MTS","AMOUNT","RATE_DAILY","PERIOD"]
[401636694,1768321832191,-461.67526834,0.00015301,2]
[401636695,1768321832201,-251.11897888,0.00015301,2]
[401636696,1768321832211,-260.4103811,0.00015301,2]
[401636697,1768321832221,-270.0455652,0.00015301,2]
[401636698,1768321832233,-280.03725112,0.00015301,2]
[401636699,1768321832242,-290.39862941,0.00015301,2]
[401636700,1768321832253,-301.1433787,0.00015301,2]
[401636701,1768321832263,-320.36094391,0.00015309,2]
[401636702,1768321832273,-500.0,0.00015309,2]
[401636703,1768321832283,-500.0,0.00015309,2]
[401636704,1768321832293,-500.0,0.00015309,2]
[401636706,1768321832303,-500.0,0.00015309,2]
[401636707,1768321832313,-500.0,0.00015309,2]
[401636708,1768321832323,-500.0,0.00015309,2]
[401636710,1768321832332,-500.0,0.00015309,2]
[401636711,1768321832342,-500.0,0.00015309,2]
[401636712,1768321832351,-500.0,0.00015309,2]
[401636713,1768321832360,-500.0,0.00015309,2]
[401636715,1768321832370,-500.0,0.00015309,2]
[401636717,1768321832379,-500.0,0.00015309,2]
[401636718,1768321832388,-500.0,0.00015309,2]
[401636719,1768321832398,-500.0,0.00015309,2]
[401636720,1768321832408,-500.0,0.00015309,2]
[401636721,1768321832418,-201.10112483,0.00015309,2]
[401636722,1768321832428,-470.91732061,0.00015309,2]
[401636723,1768321832437,-500.0,0.00015309,2]
[401636724,1768321832446,-500.0,0.00015309,2]
[401636725,1768321832455,-500.0,0.00015309,2]
[401636726,1768321832464,-500.0,0.00015309,2]
[401636727,1768321832477,-500.0,0.00015309,2]
[401636728,1768321832487,-500.0,0.00015309,2]
[401636729,1768321832497,-212.69018338,0.00015309,2]
[401636730,1768321832507,-500.0,0.00015309,2]
[401636731,1768321832519,-500.0,0.00015309,2]
[401636732,1768321832528,-646.91860907,0.00015309,2]
[401636733,1768321832537,-500.0,0.00015309,2]
[401636734,1768321832547,-181.14101356,0.00015309,2]
[401636735,1768321832557,-39530.10910811,0.0001531,2]
[401636736,1768321832570,-49674.60651694,0.0001531,2]
[401636737,1768321832581,-2204.39796846,0.0001531,2]
[401636750,1768321838203,-818.02365166,0.0001531,2]
[401636789,1768321840354,-1000.0,0.0001531,2]
[401636791,1768321840365,-15326.58902524,0.0001531,2]
[401637378,1768321845916,-396.61442172,0.0001531,2]
[401637386,1768321845981,-5623.05782176,0.0001531,2]
[401637390,1768321846019,-1177.46246157,0.0001531,2]
[401637521,1768321847437,-503.85,0.0001531,2]
[401637646,1768321848802,-9825.85280239,0.0001531,2]
[401637649,1768321848813,-891.19304857,0.0001531,2]
[401641135,1768321884843,346.62362618,0.00030136,120]
[401641686,1768321892349,199.0,0.00027454,73]
[401641705,1768321900061,1330.16931721,0.00014963,2]
[401641706,1768321904202,209.01,0.00010814,2]
[401641707,1768321904602,278.67,0.00011284,2]
[401641708,1768321905053,199.75135071,0.00011754,2]
[401641709,1768321905080,148.58864929,0.00011754,2]
[401641710,1768321905969,418.01,0.00012224,2]
[401641711,1768321906391,487.68,0.00012694,2]
[401641712,1768321906798,557.35,0.00013165,2]
[401641713,1768321907218,627.02,0.00013635,2]
[401641714,1768321907625,696.69,0.00014105,2]
[401641715,1768321931957,999.0,0.00014309,2]
[401641716,1768321979200,170.04,6.436e-05,2]
[401641717,1768321979611,226.73,6.716e-05,2]
[401641718,1768321980009,283.41,6.996e-05,2]
[401641719,1768321980931,340.09,7.276e-05,2]
[401641720,1768321981352,396.77,7.556e-05,2]
[401641721,1768321981736,453.45,7.835e-05,2]
[401641722,1768321982149,510.13,8.115e-05,2]
[401641723,1768321982561,566.81,8.395e-05,2]
[401641724,1768322046241,500.0,0.00013273,2]
[401641725,1768322046599,500.0,0.00013273,2]
[401641726,1768322046641,500.0,0.00013699,2]
[401641727,1768322046681,217.23459817,0.00013273,2]
[401641728,1768322046954,500.0,0.00013273,2]
[401641729,1768322050474,500.13491524,0.00013273,2]
[401641730,1768322050663,400.8718373,0.00013273,2]
[401641731,1768322050691,99.1281627,0.00013273,2]
[401641732,1768322051208,185.60453451,0.00013273,2]
[401641733,1768322051910,153.35,7.856e-05,2]
[401641734,1768322052370,172.52,8.137e-05,2]
[401641735,1768322052802,-634.94507728,0.0001501,2]
[401641736,1768322053998,519.9936575,0.00013273,2]
[401641737,1768322054169,500.0,0.00013273,2]
[401641738,1768322054355,500.90932308,0.00013273,2]
[401641739,1768322054946,500.0,0.00013273,2]
[401641740,1768322055016,500.0,0.00013273,2]
[401641741,1768322055054,500.14204238,0.00013273,2]
[401641742,1768322058587,500.0,0.00013273,2]
[401641743,1768322059550,500.10488694,0.00013273,2]
[401641744,1768322067997,-767.25916442,0.00015017,2]
[401641745,1768322102073,300.0,0.00015209,2]
[401641746,1768322102311,1200.0,0.00015209,2]
[401641747,1768322102573,300.0,0.00015209,2]
[401641748,1768322103227,167.61597056,0.00013273,2]
[401641749,1768322107255,500.11515149,0.00013273,2]
[401641750,1768322107289,500.0,0.00013273,2]
[401641751,1768322110813,500.0,0.00013273,2]
[401641752,1768322112430,511.50610962,0.00015017,2]
[401641753,1768322113211,300.0,0.00013673,2]
[401641754,1768322113338,500.30400326,0.00013273,2]
[401641755,1768322113458,500.0,0.00013273,2]
[401641756,1768322127980,-195.41,0.00013273,2]
[401641757,1768322131062,-304.59,0.00013273,2]
[401641758,1768322131084,-131.83864136,0.00013273,2]
[401641759,1768322132458,-298.30615314,0.00013273,2]
[401641760,1768322133969,-69.97405662,0.00013273,2]
[401641761,1768322133992,-344.17046968,0.00013273,2]
[401641762,1768322136348,-156.33034165,0.00013273,2]
[401641763,1768322136369,-449.37367912,0.00013273,2]
[401641764,1768322162390,300.0,0.00013272,2]
[401641765,1768322162947,300.0,0.00013272,2]
[401641766,1768322184599,157.57,0.000117,2]
[401641767,1768322220117,-50.62632088,0.00013273,2]
[401641768,1768322220147,-210.86284677,0.00013273,2]
[401641769,1768322220175,-171.74027593,0.00013273,2]
[401641770,1768322220203,-500.0,0.00013273,2]
[401641771,1768322220234,-235.75910975,0.00013273,2]
[401641772,1768322220262,-500.0,0.00013273,2]
[401641773,1768322220292,-500.0,0.00013273,2]
[401641774,1768322220320,-500.0,0.00013273,2]
[401641775,1768322220349,-264.41818772,0.00013273,2]
[401641776,1768322223065,-300.0,0.00014115,2]
[401641777,1768322226275,-500.07311725,0.00013273,2]
[401641778,1768322226305,-500.0,0.00013273,2]
[401641779,1768322226335,-500.0,0.00013273,2]
[401641780,1768322226364,-500.0,0.00013273,2]
[401641781,1768322226495,-2983.11107967,0.00014116,2]
[401641782,1768322226516,-7016.89892033,0.00014116,2]
[401641783,1768322226527,-300.0,0.00014599,2]
[401641784,1768322226538,-341.00407308,0.00015017,2]
[401641785,1768322226548,-518.65293024,0.00015083,2]
[401641786,1768322226557,-228.8385003,0.00015155,2]
[401641787,1768322226567,-995.83532342,0.00015155,2]
[401641788,1768322226576,-598.78025263,0.00015155,2]
[401641789,1768322283800,546.1,9.99e-05,2]
[401641790,1768322284111,546.1,9.99e-05,2]
[401641791,1768322284421,500.0,0.00013273,2]
[401641792,1768322284651,500.20570792,0.00013273,2]
[401641793,1768322343582,500.0,0.00013273,2]
[401641794,1768322343659,218.11653385,0.00013273,2]
[401641795,1768322343734,161.98565488,0.00013273,2]
[401641796,1768322346267,500.0,0.00013273,2]
[401641797,1768322365761,151.0,0.00030137,120]
[401641798,1768322377869,158.0,0.00030137,120]
[401641799,1768322384041,158.0,0.00030137,120]
[401641800,1768322403919,500.0,0.00013273,2]
[401641801,1768322403969,500.09394672,0.00013273,2]
[401641802,1768322404003,500.0,0.00013273,2]
[401641803,1768322404048,500.24269708,0.00013273,2]
[401641804,1768322405059,151.3,5e-05,2]
[401641805,1768322405365,500.0,0.00013273,2]
[401641806,1768322405839,151.3,5.7e-05,2]
[401641807,1768322406041,500.0,0.00013273,2]
[401641808,1768322406278,500.0,0.00013273,2]
[401641809,1768322406486,151.3,6.4e-05,2]
[401641810,1768322407087,151.3,7.1e-05,2]
[401641811,1768322407726,151.3,7.8e-05,2]
[401641812,1768322408389,151.3,8.5e-05,2]
[401641813,1768322408999,151.3,9.2e-05,2]
[401641814,1768322409613,151.3,9.9e-05,2]
[401641815,1768322411125,151.3,0.000106,2]
[401641816,1768322411858,151.3,0.000113,2]
[401641817,1768322412487,151.3,0.00012,2]
[401641818,1768322413117,151.3,0.000127,2]
[401641819,1768322413715,151.3,0.000134,2]
[401641820,1768322414324,151.3,0.000141,2]
[401641821,1768322424597,-151.3,0.000148,2]
[401641822,1768322484863,-635.0,0.00014955,2]
[401641823,1768322484896,-268.53429379,0.00014955,2]
[401641824,1768322484926,-156.85127801,0.00014955,2]
[401641825,1768322484958,-500.0,0.00014999,2]
[401641826,1768322484993,-500.0,0.00014999,2]
[401641827,1768322485026,-227.33604872,0.00015017,2]
[401641828,1768322485058,-500.0,0.00015027,2]
[401641829,1768322485093,-167.41762285,0.00015027,2]
[401641830,1768322485125,-500.0,0.00015027,2]
[401641831,1768322485156,-415.97191971,0.00015096,2]
[401641832,1768322490851,-3273.69186316,0.00015107,2]
[401641833,1768322493835,-3452.62627368,0.00015107,2]
[401641834,1768322493864,-1198.76380444,0.00015128,2]
[401641835,1768322523801,500.0,0.00013273,2]
[401641836,1768322523960,500.0,0.00013273,2]
[401641837,1768322525378,500.0,0.00013699,2]
[401641838,1768322525515,500.0,0.00013273,2]
[401641839,1768322557138,158.0,0.00030137,120]
[401641840,1768322565126,158.0,0.00030137,120]
[401641841,1768322573974,151.0,0.00030137,120]
[401641842,1768322583189,151.0,0.00030137,120]
[401641843,1768322583322,500.0,0.00013273,2]
[401641844,1768322583353,165.67004475,0.00013273,2]
[401641845,1768322583385,341.44701077,0.00013273,2]
[401641846,1768322583416,283.60096806,0.00013273,2]
[401641847,1768322585692,500.0,0.00013273,2]
[401641848,1768322586693,500.0,0.00013273,2]
[401641849,1768322633313,160.0,0.00030137,120]
[401641850,1768322643965,160.0,0.00030137,120]
[401641851,1768322662550,173.02150401,0.00030137,120]
[401641852,1768322677831,500.0,0.00030136,120]
[401641853,1768322678070,500.0,0.00030136,120]
[401641854,1768322678354,251.98620909,0.00030136,120]
[401641855,1768322703417,500.0,0.00013273,2]
[401641856,1768322703449,500.0,0.00013273,2]
[401641857,1768322703482,500.0,0.00013273,2]
[401641858,1768322703516,500.0,0.00013273,2]
[401641859,1768322703548,500.0,0.00013273,2]
[401641860,1768322703586,500.0,0.00013273,2]
[401641861,1768322703787,500.70542485,0.00013273,2]
[401641862,1768322705406,500.0,0.00013273,2]
[401641865,1768322803444,500.0,0.00030136,120]
[401641866,1768322823514,500.0,0.00013273,2]
[401641867,1768322823545,500.0,0.00013273,2]
[401641868,1768322823679,500.0,0.00013273,2]
[401641872,1768322943830,598.53187916,0.00013273,2]
[401641885,1768322990903,-217.706093,0.00014254,2]
[401641907,1768323033680,654.80531633,0.000301,120]
[401641919,1768323037039,-300.0,0.00014998,2]
[401641920,1768323037049,-1200.0,0.00014998,2]
[401641921,1768323037061,-569.77464028,0.00014998,30]
[401641922,1768323037071,-248.52490689,0.00014999,2]
[401641923,1768323037082,-500.0,0.00014999,2]
[401641924,1768323037092,-220.16550018,0.00014999,2]
[401641925,1768323037102,-500.0,0.00014999,2]
[401641926,1768323037111,-500.0,0.00014999,2]
[401641927,1768323037121,-500.0,0.00014999,2]
[401641929,1768323037131,-893.0,0.00014999,2]
[401641931,1768323037140,-500.0,0.00014999,2]
[401641932,1768323037149,-480.0,0.00014999,2]
[401641933,1768323037159,-247.76958579,0.00014999,2]
[401641934,1768323037169,-500.0,0.00014999,2]
[401641935,1768323037179,-500.0,0.00014999,2]
[401641936,1768323037189,-263.16360791,0.00015046,2]
[401641937,1768323037199,-168.0,0.00015093,2]
[401641938,1768323037208,-151.55736581,0.00015096,2]
[401641939,1768323037218,-796.66825872,0.0001511,2]
[401641940,1768323037227,-2030.296672,0.00015122,2]
[401641941,1768323037236,-2230.315306,0.00015122,2]
[401641942,1768323037246,-697.22984376,0.00015128,2]
[401641943,1768323037255,-2537.24052882,0.00015131,2]
[401641944,1768323037264,-2074.61172097,0.00015131,2]
[401641945,1768323037274,-796.66825872,0.00015135,2]
[401641946,1768323037284,-500.0,0.00015136,2]
[401641947,1768323037293,-500.0,0.00015136,2]
[401641948,1768323037303,-500.0,0.00015136,2]
[401641949,1768323037312,-500.0,0.00015136,2]
[401641950,1768323037321,-736.08149333,0.00015136,2]
[401641958,1768323038254,-156.91850667,0.00015136,2]
[401641959,1768323038265,-500.0,0.00015136,2]
[401641960,1768323038275,-195.7321645,0.00015136,2]
[401641961,1768323038284,-480.0,0.00015136,2]
[401641962,1768323038295,-500.0,0.00015136,2]
[401641963,1768323038304,-500.0,0.00015136,2]
[401641964,1768323038322,-410.33932883,0.00015136,2]
[401641965,1768323038336,-1913.73539143,0.00015136,2]
[401641966,1768323038346,-1662.22379115,0.00015136,2]
[401641967,1768323038355,-500.0,0.00015154,2]
[401641968,1768323038365,-500.0,0.00015154,2]
[401641969,1768323038375,-796.66825872,0.0001516,2]
[401641970,1768323038385,-500.0,0.00015164,2]
[401641972,1768323038394,-4667.87637217,0.00015167,2]
[401641973,1768323038403,-1995.90463141,0.00015177,2]
[401641974,1768323038413,-796.66825872,0.00015184,2]
[401641975,1768323038423,-354.27,0.00015195,3]
[401641976,1768323038434,-177.14,0.00015195,3]
[401641977,1768323038442,-531.43,0.00015196,3]
[401641978,1768323038452,-1417.09,0.00015198,3]
[401641979,1768323038462,-708.54,0.00015198,3]
[401641980,1768323038472,-151.0,0.000152,2]
[401641981,1768323038481,-151.0,0.000152,2]
[401641982,1768323038491,-151.0,0.000152,2]
[401641983,1768323038502,-151.0,0.000152,2]
[401641984,1768323038511,-151.0,0.000152,2]
[401641985,1768323038521,-151.0,0.000152,2]
[401641986,1768323038531,-151.0,0.000152,2]
[401641987,1768323038542,-151.0,0.000152,2]
[401641988,1768323038552,-151.0,0.000152,2]
[401641989,1768323038561,-151.0,0.000152,2]
[401641990,1768323038571,-567.50747072,0.000152,2]
[401641991,1768323038581,-1101.13,0.000152,2]
[401641992,1768323038591,-151.0,0.00015201,2]
[401641993,1768323038600,-151.0,0.00015201,2]
[401641994,1768323038610,-151.0,0.00015201,2]
[401641995,1768323038620,-154.15179709,0.00015201,2]
[401641996,1768323038630,-168.3888056,0.00015201,2]
[401641997,1768323038640,-174.61919141,0.00015201,2]
[401641998,1768323038650,-181.08010149,0.00015201,2]
[401641999,1768323038659,-187.78006525,0.00015201,2]
[401642000,1768323038669,-194.72792766,0.00015201,2]
[401642001,1768323038679,-201.93286099,0.00015201,2]
[401642002,1768323038688,-209.40437684,0.00015201,2]
[401642003,1768323038698,-217.15233878,0.00015201,2]
[401642004,1768323038708,-225.18697532,0.00015201,2]
[401642005,1768323038718,-233.51889341,0.00015201,2]
[401642006,1768323038727,-242.15909246,0.00015201,2]
[401642007,1768323038737,-461.67526834,0.00015201,2]
[401642008,1768323038748,-251.11897888,0.00015201,2]
[401642009,1768323038759,-260.4103811,0.00015201,2]
[401642010,1768323038769,-270.0455652,0.00015201,2]
[401642011,1768323038779,-280.03725112,0.00015201,2]
[401642012,1768323038788,-290.39862941,0.00015201,2]
[401642013,1768323038799,-301.1433787,0.00015201,2]
[401642014,1768323038808,-151.0,0.00015201,2]
[401642015,1768323038818,-151.0,0.00015201,2]
[401642016,1768323038830,-151.0,0.00015201,2]
[401642017,1768323038844,-500.0,0.00015202,2]
[401642018,1768323038853,-500.0,0.00015202,2]
[401642019,1768323038863,-500.0,0.00015202,2]
[401642020,1768323038873,-500.0,0.00015202,2]
[401642021,1768323038882,-500.0,0.00015202,2]
[401642022,1768323038892,-500.0,0.00015202,2]
[401642023,1768323038903,-500.0,0.00015202,2]
[401642024,1768323038914,-500.0,0.00015202,2]
[401642025,1768323038923,-500.0,0.00015202,2]
[401642026,1768323038934,-500.0,0.00015202,2]
[401642027,1768323038943,-500.0,0.00015202,2]
[401642028,1768323038953,-500.0,0.00015202,2]
[401642029,1768323038963,-500.0,0.00015202,2]
[401642030,1768323038975,-500.0,0.00015202,2]
[401642031,1768323038984,-500.0,0.00015202,2]
[401642032,1768323038994,-500.0,0.00015202,2]
[401642033,1768323039004,-500.0,0.00015202,2]
[401642034,1768323039014,-500.0,0.00015202,2]
[401642035,1768323039023,-500.0,0.00015202,2]
[401642036,1768323039033,-500.0,0.00015202,2]
[401642037,1768323039044,-500.0,0.00015202,2]
[401642038,1768323039053,-500.0,0.00015202,2]
[401642039,1768323039063,-500.0,0.00015202,2]
[401642040,1768323039072,-500.0,0.00015202,2]
[401642041,1768323039082,-500.0,0.00015202,2]
[401642042,1768323039091,-500.0,0.00015202,2]
[401642043,1768323039100,-500.0,0.00015202,2]
[401642044,1768323039109,-500.0,0.00015202,2]
[401642045,1768323039119,-500.0,0.00015202,2]
[401642046,1768323039128,-500.0,0.00015202,2]
[401642047,1768323039138,-500.0,0.00015202,2]
[401642048,1768323039147,-500.0,0.00015202,2]
[401642049,1768323039157,-500.0,0.00015202,2]
[401642050,1768323039167,-500.0,0.00015202,2]
[401642051,1768323039180,-500.0,0.00015202,2]
[401642052,1768323039190,-528.15422815,0.00015202,2]
[401642053,1768323039200,-500.0,0.00015202,2]
[401642054,1768323039211,-500.0,0.00015202,2]
[401642055,1768323039220,-500.0,0.00015202,2]
[401642056,1768323039229,-500.0,0.00015202,2]
[401642057,1768323039239,-500.0,0.00015202,2]
[401642058,1768323039249,-500.0,0.00015202,2]
[401642059,1768323039259,-500.0,0.00015202,2]
[401642060,1768323039268,-500.0,0.00015202,2]
[401642061,1768323039279,-500.0,0.00015202,2]
[401642062,1768323039288,-500.0,0.00015202,2]
[401642063,1768323039297,-500.0,0.00015202,2]
[401642064,1768323039307,-500.0,0.00015202,2]
[401642065,1768323039316,-500.0,0.00015202,2]
[401642066,1768323039326,-500.0,0.00015202,2]
[401642067,1768323039336,-550.0,0.00015202,2]
[401642068,1768323039346,-254.23027267,0.00015202,2]
[401642069,1768323039355,-500.0,0.00015202,2]
[401642070,1768323039365,-500.0,0.00015202,2]
[401642071,1768323039374,-500.0,0.00015202,2]
[401642072,1768323039384,-500.0,0.00015202,2]
[401642073,1768323039394,-500.0,0.00015202,2]
[401642074,1768323039403,-500.0,0.00015202,2]
[401642075,1768323039413,-500.0,0.00015202,2]
[401642076,1768323039422,-500.0,0.00015202,2]
[401642077,1768323039431,-500.0,0.00015202,2]
[401642078,1768323039440,-500.0,0.00015202,2]
[401642079,1768323039450,-500.0,0.00015202,2]
[401642080,1768323039459,-500.0,0.00015202,2]
[401642081,1768323039469,-500.0,0.00015202,2]
[401642082,1768323039478,-500.0,0.00015202,2]
[401642083,1768323039488,-500.0,0.00015202,2]
[401642084,1768323039497,-500.0,0.00015202,2]
[401642085,1768323039506,-500.0,0.00015202,2]
[401642086,1768323039516,-500.0,0.00015202,2]
[401642087,1768323039527,-500.0,0.00015202,2]
[401642090,1768323039693,-500.0,0.00015202,2]
[401642091,1768323039711,-500.0,0.00015202,2]
[401642092,1768323039720,-500.0,0.00015202,2]
[401642093,1768323039730,-500.0,0.00015202,2]
[401642094,1768323039739,-500.0,0.00015202,2]
[401642095,1768323039748,-500.0,0.00015202,2]
[401642096,1768323039758,-500.0,0.00015202,2]
[401642097,1768323039767,-500.0,0.00015202,2]
[401642098,1768323039778,-500.0,0.00015202,2]
[401642099,1768323039788,-500.0,0.00015202,2]
[401642100,1768323039797,-151.0,0.00015204,2]
[401642101,1768323039808,-151.0,0.00015204,2]
[401642102,1768323039818,-151.0,0.00015205,2]
[401642103,1768323039829,-151.0,0.00015205,2]
[401642104,1768323039839,-151.0,0.00015205,2]
[401642105,1768323039848,-158.813136,0.00015205,2]
[401642106,1768323039858,-1101.13,0.00015206,2]
[401642107,1768323039868,-1101.13,0.00015206,2]
[401642108,1768323039876,-1101.13,0.00015206,2]
[401642109,1768323039885,-1101.13,0.00015206,2]
[401642110,1768323039895,-1101.13,0.00015206,2]
[401642111,1768323039905,-500.0,0.00015208,2]
[401642112,1768323039915,-500.0,0.00015208,2]
[401642113,1768323039924,-500.0,0.00015208,2]
[401642114,1768323039933,-500.0,0.00015208,2]
[401642115,1768323039942,-500.0,0.00015208,2]
[401642116,1768323039952,-500.0,0.00015208,2]
[401642117,1768323039961,-500.0,0.00015208,2]
[401642118,1768323039971,-500.0,0.00015208,2]
[401642119,1768323039979,-208.99143448,0.00015208,2]
[401642120,1768323039988,-500.0,0.00015209,2]
[401642121,1768323039998,-498.11006975,0.00015209,2]
[401642122,1768323040008,-500.0,0.00015209,2]
[401642123,1768323040018,-500.0,0.00015209,2]
[401642124,1768323040027,-298.88312837,0.00015209,2]
[401642125,1768323040036,-500.0,0.00015209,2]
[401642127,1768323040047,-500.0,0.00015209,2]
[401642129,1768323040056,-500.0,0.00015209,2]
[401642130,1768323040066,-500.0,0.00015209,2]
[401642132,1768323040075,-500.0,0.00015209,2]
[401642134,1768323040085,-500.0,0.00015209,2]
[401642136,1768323040095,-500.0,0.00015209,2]
[401642137,1768323040104,-500.0,0.00015209,2]
[401642138,1768323040114,-500.0,0.00015209,2]
[401642139,1768323040123,-500.0,0.00015209,2]
[401642140,1768323040132,-509.21818986,0.00015209,2]
[401642142,1768323040142,-500.0,0.00015209,2]
[401642144,1768323040152,-500.0,0.00015209,2]
[401642146,1768323040162,-500.0,0.00015209,2]
[401642148,1768323040172,-500.0,0.00015209,2]
[401642150,1768323040181,-500.0,0.00015209,2]
[401642152,1768323040190,-500.0,0.00015209,2]
[401642154,1768323040200,-500.0,0.00015209,2]
[401642156,1768323040209,-500.0,0.00015209,2]
[401642158,1768323040218,-500.0,0.00015209,2]
[401642160,1768323040227,-500.0,0.00015209,2]
[401642162,1768323040236,-400.99242796,0.00015209,2]
[401642164,1768323040246,-796.66825872,0.00015209,2]
[401642166,1768323040255,-1101.13,0.00015209,2]
[401642168,1768323040265,-1101.13,0.00015209,2]
[401642170,1768323040274,-1101.13,0.00015209,2]
[401642172,1768323040284,-1101.13,0.00015209,2]
[401642174,1768323040295,-1101.13,0.00015209,2]
[401642176,1768323040304,-1101.13,0.00015209,2]
[401642178,1768323040313,-1101.13,0.00015209,2]
[401642180,1768323040322,-1101.13,0.00015209,2]
[401642182,1768323040331,-1101.13,0.00015209,2]
[401642184,1768323040340,-1101.13,0.00015209,2]
[401642186,1768323040349,-1101.13,0.00015209,2]
[401642188,1768323040360,-1101.13,0.00015209,2]
[401642190,1768323040369,-1101.13,0.00015209,2]
[401642192,1768323040378,-1101.13,0.00015209,2]
[401642194,1768323040388,-1101.13,0.00015209,2]
[401642196,1768323040397,-1101.13,0.00015209,2]
[401642198,1768323040406,-1101.13,0.00015209,2]
[401642200,1768323040415,-1101.26138088,0.00015209,2]
[401642202,1768323040424,-220.97852396,0.0001521,2]
[401642204,1768323040433,-635881.32851442,0.0001521,2]
[401642662,1768323044941,-151.0,0.00015201,2]
[401642664,1768323044951,-151.0,0.00015201,2]
[401642666,1768323044961,-151.0,0.00015201,2]
[401642667,1768323044970,-151.0,0.00015201,2]
[401642669,1768323044979,-151.0,0.00015201,2]
[401642671,1768323044988,-151.0,0.00015201,2]
[401642673,1768323044997,-151.0,0.00015201,2]
[401642675,1768323045006,-151.0,0.00015201,2]
[401642677,1768323045015,-151.0,0.00015201,2]
[401642679,1768323045024,-151.0,0.00015201,2]
[401642681,1768323045035,-531.08499773,0.0001521,2]
[401642734,1768323045573,-151.0,0.00015201,2]
[401642736,1768323045582,-167.55232866,0.0001521,2]
[401642742,1768323045625,-3188.0,0.0001521,2]
[401642744,1768323045636,-2141.85924301,0.0001521,2]
[401642746,1768323045647,-660.112334,0.0001521,2]
[401642772,1768323046000,-9177.06506789,0.0001521,2]
[401642773,1768323046055,-1606.14449984,0.0001521,2]
[401642774,1768323046066,-1178.75124363,0.0001521,2]
[401649559,1768323149521,-319.6774091,0.00014072,2]
[401649560,1768323150855,-421.40025926,0.00014072,2]
[401649561,1768323152324,-174.21371744,0.00014072,2]
[401649562,1768323155128,-163.1708762,0.00014072,2]
[401649563,1768323232545,915.2913858,0.00014014,2]
[401649566,1768323420869,300.0,0.00013998,2]
[401649567,1768323544159,158.55298923,0.00013273,2]
[401649568,1768323572070,885.68,0.00012329,2]
[401649569,1768323582676,738.06,0.00012329,2]
[401649570,1768323593026,615.05,0.00012329,2]
[401649571,1768323603486,512.54,0.00012329,2]
[401649572,1768323604665,154.91,5e-05,2]
[401649573,1768323605279,154.91,7.5e-05,2]
[401649574,1768323605886,154.91,0.0001,2]
[401649575,1768323606807,154.91,0.000125,2]
[401649576,1768323614280,559.94,0.00012329,2]
[401649577,1768323614998,-219.08,0.00014734,7]
[401649578,1768323624829,466.62,0.00012329,2]
[401649579,1768323635289,388.85,0.00012329,2]
[401649580,1768323645824,324.04,0.00012329,2]
[401649581,1768323656323,270.03,0.00012329,2]
[401649582,1768323666769,225.03,0.00012329,2]
[401649583,1768323677215,187.52,0.00012329,2]
[401649584,1768323687687,156.27,0.00012329,2]
[401649585,1768323698170,781.37,0.00012329,2]
[401649586,1768323721572,-3023.56549194,0.0001425,2]
[401649587,1768323738231,500.0,0.00013273,2]
[401649588,1768323917318,3452.87901612,0.0001425,2]